Workbook

Sheet week1
B1: 2019-11-15
B2: Week 1 | C2: Speler 1 | D2: Speler 2 | E2: Speler 3 | F2: Speler 4 | G2: Speler 5
B3: Naam | C3: A | D3: B | E3: C | F3: D | G3: E
B4: Ronde 1 | C4: 53 | D4: 65 | E4: 88 | F4: 72 | G4: 62
B5: Ronde 2 | C5: 80 | D5: 58 | E5: 51 | F5: 70 | G5: 50
B6: Ronde 3 | C6: 70 | D6: 73 | E6: 54 | F6: 62 | G6: 35
B7: Ronde 4 | C7: 37 | D7: 61 | E7: 48 | F7: 61 | G7: 69
B8: Ronde 5 | C8: 94 | D8: 69 | E8: 52 | F8: 31 | G8: 50
B9: Sub Tot | C9: =SUM(C4:C8) -> 334 | D9: =SUM(D4:D8) -> 326 | E9: 293 | F9: 296 | G9: 266
B11: Week 1 | C11: Speler 6 | D11: Speler 7 | E11: Speler 8 | F11: Speler9 | G11: Speler 10
B12: Naam | C12: F | D12: G | E12: H | F12: I | G12: J
B13: Ronde 1 | C13: 85 | D13: 63 | E13: 41 | F13: 68 | G13: 72
B14: Ronde 2 | C14: 21 | D14: 63 | E14: 67 | F14: 84 | G14: 69
B15: Ronde 3 | C15: 68 | D15: 54 | E15: 81 | F15: 76 | G15: 65
B16: Ronde 4 | C16: 49 | D16: 68 | E16: 71 | F16: 58 | G16: 72
B17: Ronde 5 | C17: 77 | D17: 84 | E17: 67 | F17: 57 | G17: 88
B18: Sub Tot | C18: =SUM(C13:C17) -> 300 | D18: =SUM(D13:D17) -> 332 | E18: =SUM(E13:E17) -> 327 | F18: =SUM(F13:F17) -> 343 | G18: =SUM(G13:G17) -> 366
B22: Week 1 | C22: Speler 11 | D22: Speler 12 | E22: Speler13 | F22: Speler 14 | G22: Speler 15
B23: Naam | C23: K | D23: L
B24: Ronde 1 | C24: 81 | D24: 72
B25: Ronde 2 | C25: 72 | D25: 69
B26: Ronde 3 | C26: 66 | D26: 39
B27: Ronde 4 | C27: 71 | D27: 67
B28: Ronde 5 | C28: 74 | D28: 50
B29: Sub Tot | C29: =SUM(C24:C28) -> 364 | D29: =SUM(D24:D28) -> 297 | E29: =SUM(E24:E28) -> 0 | F29: =SUM(F24:F28) -> 0 | G29: =SUM(G24:G28) -> 0

Sheet week2
B1: 2019-11-22
B2: Week2 | C2: Speler 1 | D2: Speler 2 | E2: Speler 3 | F2: Speler 4 | G2: Speler 5
B3: Naam | C3: =week1!C$3 -> A | D3: =week1!D$3 -> B | E3: =week1!E$3 -> C | F3: =week1!F$3 -> D | G3: =week1!G$3 -> E
B4: Ronde 1 | C4: 45 | D4: 67 | E4: 90 | F4: 78 | G4: 98
B5: Ronde 2 | C5: 120 | D5: 56 | E5: 65 | F5: 54 | G5: 76
B6: Ronde 3 | C6: 67 | D6: 90 | E6: 34 | F6: 34 | G6: 65
B7: Ronde 4 | C7: 89 | D7: 58 | E7: 43 | F7: 76 | G7: 43
B8: Ronde 5 | C8: 50 | D8: 76 | E8: 60 | F8: 45 | G8: 34
B9: Sub Tot | C9: =SUM(C4:C8) -> 371 | D9: =SUM(D4:D8) -> 347 | E9: 292 | F9: 287 | G9: 316
B11: Week 2 | C11: Speler 6 | D11: Speler 7 | E11: Speler 8 | F11: Speler9 | G11: Speler 10
B12: Naam | C12: =week1!C$12 -> F | D12: G | E12: =week1!E$12 -> H | F12: I | G12: J
B13: Ronde 1 | C13: 45 | D13: 87 | E13: 64 | F13: 54 | G13: 78
B14: Ronde 2 | C14: 78 | D14: 65 | E14: 43 | F14: 78 | G14: 67
B15: Ronde 3 | C15: 54 | D15: 87 | E15: 110 | F15: 56 | G15: 65
B16: Ronde 4 | C16: 34 | D16: 46 | E16: 87 | F16: 99 | G16: 33
B17: Ronde 5 | C17: 78 | D17: 64 | E17: 45 | F17: 76 | G17: 56
B18: Sub Tot | C18: =SUM(C13:C17) -> 289 | D18: =SUM(D13:D17) -> 349 | E18: =SUM(E13:E17) -> 349 | F18: =SUM(F13:F17) -> 363 | G18: =SUM(G13:G17) -> 299
B20: Week 2 | C20: Speler 11 | D20: Speler 12 | E20: Speler13 | F20: Speler 14 | G20: Speler 15
B21: Naam | C21: K | D21: L
B22: Ronde 1 | C22: 99 | D22: 65
B23: Ronde 2 | C23: 76 | D23: 87
B24: Ronde 3 | C24: 54 | D24: 43
B25: Ronde 4 | C25: 76 | D25: 99
B26: Ronde 5 | C26: 45 | D26: 78
B27: Sub Tot | C27: =SUM(C22:C26) -> 350 | D27: =SUM(D22:D26) -> 372 | E27: =SUM(E22:E26) -> 0 | F27: =SUM(F22:F26) -> 0 | G27: =SUM(G22:G26) -> 0

Sheet week3
B1: 2019-11-29
B2: Week 3 | C2: Speler 1 | D2: Speler 2 | E2: Speler 3 | F2: Speler 4 | G2: Speler 5
B3: Naam | C3: =week1!C$3 -> A | D3: =week1!D$3 -> B | E3: =week1!E$3 -> C | F3: =week1!F$3 -> D | G3: =week1!G$3 -> E
B4: Ronde 1
B5: Ronde 2
B6: Ronde 3
B7: Ronde 4
B8: Ronde 5
B9: Sub Tot | F9: =SUM(F4:F8) -> 0 | G9: 0
B11: Week 3 | C11: Speler 6 | D11: Speler 7 | E11: Speler 8 | F11: Speler9 | G11: Speler 10
B12: Naam | C12: =week1!C$12 -> F | D12: =week1!D$12 -> G | E12: =week1!E$12 -> H | F12: =week1!F$12 -> I | G12: =week1!G$12 -> J
B13: Ronde 1
B14: Ronde 2
B15: Ronde 3
B16: Ronde 4
B17: Ronde 5
B18: Sub Tot | C18: =SUM(C13:C17) -> 0 | D18: =SUM(D13:D17) -> 0 | E18: =SUM(E13:E17) -> 0
B20: Week 3 | C20: Speler 6 | D20: Speler 7 | E20: Speler 8 | F20: Speler9 | G20: Speler 10
B21: Naam | D21: =week1!C$23 -> K | E21: =week1!C$24 -> 81 | F21: =week1!C$25 -> 72 | G21: =week1!C$26 -> 66
B22: Ronde 1
B23: Ronde 2
B24: Ronde 3
B25: Ronde 4
B26: Ronde 5
B27: Sub Tot | C27: =SUM(C22:C26) -> 0 | D27: =SUM(D22:D26) -> 0 | E27: =SUM(E22:E26) -> 0 | F27: =SUM(F22:F26) -> 0 | G27: =SUM(G22:G26) -> 0
B29: Week 3 | C29: Speler 11 | D29: Speler 12 | E29: Speler13 | F29: Speler 14 | G29: Speler 15
B30: Naam | C30: =week1!C23 -> K | D30: =week1!D23 -> L | E30: =week1!E23 -> 0 | F30: =week1!F23 -> 0 | G30: =week1!G23 -> 0
B31: Ronde 1
B32: Ronde 2
B33: Ronde 3
B34: Ronde 4
B35: Ronde 5
B36: Sub Tot | C36: =SUM(C31:C35) -> 0 | D36: =SUM(D31:D35) -> 0 | E36: =SUM(E31:E35) -> 0 | F36: =SUM(F31:F35) -> 0 | G36: =SUM(G31:G35) -> 0

Sheet week4
B1: =speelschema!A5:B5 -> 2019-12-13
B2: Week 4 | C2: Speler 1 | D2: Speler 2 | E2: Speler 3 | F2: Speler 4 | G2: Speler 5
B3: Naam | C3: =week1!C$3 -> A | D3: =week1!D$3 -> B | E3: =week1!E$3 -> C | F3: =week1!F$3 -> D | G3: =week1!G$3 -> E
B4: Ronde 1
B5: Ronde 2
B6: Ronde 3
B7: Ronde 4
B8: Ronde 5
B9: Totaal | C9: =SUM(C4:C8) -> 0 | D9: =SUM(D4:D8) -> 0 | E9: 0 | F9: 0 | G9: 0
B11: Week 4 | C11: Speler 6 | D11: Speler 7 | E11: Speler 8 | F11: Speler9 | G11: Speler 10
B12: Naam | C12: =week1!C$12 -> F | D12: =week1!D$12 -> G | E12: =week1!E$12 -> H | F12: =week1!F$12 -> I | G12: =week1!G$12 -> J
B13: Ronde 1
B14: Ronde 2
B15: Ronde 3
B16: Ronde 4
B17: Ronde 5
B18: Totaal | C18: =SUM(C13:C17) -> 0 | D18: =SUM(D13:D17) -> 0 | E18: =SUM(E13:E17) -> 0 | F18: =SUM(F13:F17) -> 0 | G18: =SUM(G13:G17) -> 0
B20: Week 4 | C20: Speler 11 | D20: Speler 12 | E20: Speler13 | F20: Speler 14 | G20: Speler 15
B21: Naam | C21: =week1!C23 -> K | D21: =week1!D23 -> L | E21: =week1!E23 -> 0 | F21: =week1!F23 -> 0 | G21: =week1!G23 -> 0
B22: Ronde 1
B23: Ronde 2
B24: Ronde 3
B25: Ronde 4
B26: Ronde 5
B27: Sub Tot | C27: =SUM(C22:C26) -> 0 | D27: =SUM(D22:D26) -> 0 | E27: =SUM(E22:E26) -> 0 | F27: =SUM(F22:F26) -> 0 | G27: =SUM(G22:G26) -> 0

Sheet week5
B1: =speelschema!A6:B6 -> 2020-01-10
B2: Week 5 | C2: Speler 1 | D2: Speler 2 | E2: Speler 3 | F2: Speler 4 | G2: Speler 5
B3: Naam | C3: =week1!C$3 -> A | D3: =week1!D$3 -> B | E3: =week1!E$3 -> C | F3: =week1!F$3 -> D | G3: =week1!G$3 -> E
B4: Ronde 1
B5: Ronde 2
B6: Ronde 3
B7: Ronde 4
B8: Ronde 5
B9: Totaal | C9: =SUM(C4:C8) -> 0 | D9: =SUM(D4:D8) -> 0 | E9: 0 | F9: 0 | G9: 0
B11: Week 5 | C11: Speler 6 | D11: Speler 7 | E11: Speler 8 | F11: Speler9 | G11: Speler 10
B12: Naam | C12: =week1!C$12 -> F | D12: =week1!D$12 -> G | E12: =week1!E$12 -> H | F12: =week1!F$12 -> I | G12: =week1!G$12 -> J
B13: Ronde 1
B14: Ronde 2
B15: Ronde 3
B16: Ronde 4
B17: Ronde 5
B18: Totaal | C18: =SUM(C13:C17) -> 0 | D18: =SUM(D13:D17) -> 0 | E18: =SUM(E13:E17) -> 0 | F18: =SUM(F13:F17) -> 0 | G18: =SUM(G13:G17) -> 0
B20: Week 5 | C20: Speler 11 | D20: Speler 12 | E20: Speler13 | F20: Speler 14 | G20: Speler 15
B21: Naam | C21: =week1!C$23 -> K | D21: =week1!D$23 -> L | E21: =week1!E23 -> 0 | F21: =week1!F23 -> 0 | G21: =week1!G23 -> 0
B22: Ronde 1
B23: Ronde 2
B24: Ronde 3
B25: Ronde 4
B26: Ronde 5
B27: Sub Tot | C27: =SUM(C22:C26) -> 0 | D27: =SUM(D22:D26) -> 0 | E27: =SUM(E22:E26) -> 0 | F27: =SUM(F22:F26) -> 0 | G27: =SUM(G22:G26) -> 0

Sheet week6
B1: =speelschema!A7:B7 -> 2020-01-17
B2: Week 6 | C2: Speler 1 | D2: Speler 2 | E2: Speler 3 | F2: Speler 4 | G2: Speler 5
B3: Naam | C3: =week1!C$3 -> A | D3: =week1!D$3 -> B | E3: =week1!E$3 -> C | F3: =week1!F$3 -> D | G3: =week1!G$3 -> E
B4: Ronde 1
B5: Ronde 2
B6: Ronde 3
B7: Ronde 4
B8: Ronde 5
B9: Totaal | C9: =SUM(C4:C8) -> 0 | D9: =SUM(D4:D8) -> 0 | E9: 0 | F9: 0 | G9: 0
B11: Week 6 | C11: Speler 6 | D11: Speler 7 | E11: Speler 8 | F11: Speler9 | G11: Speler 10
B12: Naam | C12: =week1!C$12 -> F | D12: =week1!D$12 -> G | E12: =week1!E$12 -> H | F12: =week1!F$12 -> I | G12: =week1!G$12 -> J
B13: Ronde 1
B14: Ronde 2
B15: Ronde 3
B16: Ronde 4
B17: Ronde 5
B18: Totaal | C18: =SUM(C13:C17) -> 0 | D18: =SUM(D13:D17) -> 0 | E18: =SUM(E13:E17) -> 0 | F18: =SUM(F13:F17) -> 0 | G18: =SUM(G13:G17) -> 0
B20: Week 1 | C20: Speler 11 | D20: Speler 12 | E20: Speler13 | F20: Speler 14 | G20: Speler 15
B21: Naam | C21: =week1!C$23 -> K | D21: =week1!D$23 -> L | E21: =week1!E$23 -> 0 | F21: =week1!F23 -> 0
B22: Ronde 1
B23: Ronde 2
B24: Ronde 3
B25: Ronde 4
B26: Ronde 5
B27: Sub Tot | C27: =SUM(C22:C26) -> 0 | D27: =SUM(D22:D26) -> 0 | E27: =SUM(E22:E26) -> 0 | F27: =SUM(F22:F26) -> 0 | G27: =SUM(G22:G26) -> 0

Sheet week7
B1: =speelschema!A8:B8 -> 2020-01-24
B2: Week 7 | C2: Speler 1 | D2: Speler 2 | E2: Speler 3 | F2: Speler 4 | G2: Speler 5
B3: Naam | C3: =week1!C$3 -> A | D3: =week1!D$3 -> B | E3: =week1!E$3 -> C | F3: =week1!F$3 -> D | G3: =week1!G$3 -> E
B4: Ronde 1
B5: Ronde 2
B6: Ronde 3
B7: Ronde 4
B8: Ronde 5
B9: Totaal | C9: =SUM(C4:C8) -> 0 | D9: =SUM(D4:D8) -> 0 | E9: 0 | F9: 0 | G9: 0
B11: Week 7 | C11: Speler 6 | D11: Speler 7 | E11: Speler 8 | F11: Speler9 | G11: Speler 10
B12: Naam | C12: =week1!C$12 -> F | D12: =week1!D$12 -> G | E12: =week1!E$12 -> H | F12: =week1!F$12 -> I | G12: =week1!G$12 -> J
B13: Ronde 1
B14: Ronde 2
B15: Ronde 3
B16: Ronde 4
B17: Ronde 5
B18: Totaal | C18: =SUM(C13:C17) -> 0 | D18: =SUM(D13:D17) -> 0 | E18: =SUM(E13:E17) -> 0 | F18: =SUM(F13:F17) -> 0 | G18: =SUM(G13:G17) -> 0
B20: Week 7 | C20: Speler 11 | D20: Speler 12 | E20: Speler13 | F20: Speler 14 | G20: Speler 15
B21: Naam | C21: =week1!C$23 -> K | D21: =week1!D$23 -> L | E21: =week1!E$23 -> 0 | F21: =week1!F23 -> 0
B22: Ronde 1
B23: Ronde 2
B24: Ronde 3
B25: Ronde 4
B26: Ronde 5
B27: Sub Tot | C27: =SUM(C22:C26) -> 0 | D27: =SUM(D22:D26) -> 0 | E27: =SUM(E22:E26) -> 0 | F27: =SUM(F22:F26) -> 0 | G27: =SUM(G22:G26) -> 0

Sheet week8
B1: =speelschema!A9:B9 -> 2020-02-07
B2: Week 8 | C2: Speler 1 | D2: Speler 2 | E2: Speler 3 | F2: Speler 4 | G2: Speler 5
B3: Naam | C3: =week1!C$3 -> A | D3: =week1!D$3 -> B | E3: =week1!E$3 -> C | F3: =week1!F$3 -> D | G3: =week1!G$3 -> E
B4: Ronde 1
B5: Ronde 2
B6: Ronde 3
B7: Ronde 4
B8: Ronde 5
B9: Totaal | C9: =SUM(C4:C8) -> 0 | D9: =SUM(D4:D8) -> 0 | E9: 0 | F9: 0 | G9: 0
B11: Week 8 | C11: Speler 6 | D11: Speler 7 | E11: Speler 8 | F11: Speler9 | G11: Speler 10
B12: Naam | C12: =week1!C$12 -> F | D12: =week1!D$12 -> G | E12: =week1!E$12 -> H | F12: =week1!F$12 -> I | G12: =week1!G$12 -> J
B13: Ronde 1
B14: Ronde 2
B15: Ronde 3
B16: Ronde 4
B17: Ronde 5
B18: Totaal | C18: =SUM(C13:C17) -> 0 | D18: =SUM(D13:D17) -> 0 | E18: =SUM(E13:E17) -> 0 | F18: =SUM(F13:F17) -> 0 | G18: =SUM(G13:G17) -> 0
B20: Week 8 | C20: Speler 11 | D20: Speler 12 | E20: Speler13 | F20: Speler 14 | G20: Speler 15
B21: Naam | C21: =week1!C$23 -> K | D21: =week1!D$23 -> L | E21: =week1!E$23 -> 0 | F21: =week1!F$23 -> 0
B22: Ronde 1
B23: Ronde 2
B24: Ronde 3
B25: Ronde 4
B26: Ronde 5
B27: Sub Tot | C27: =SUM(C22:C26) -> 0 | D27: =SUM(D22:D26) -> 0 | E27: =SUM(E22:E26) -> 0 | F27: =SUM(F22:F26) -> 0 | G27: =SUM(G22:G26) -> 0

Sheet week9
B1: =speelschema!A10:B10 -> 2020-02-14
B2: Week 9 | C2: Speler 1 | D2: Speler 2 | E2: Speler 3 | F2: Speler 4 | G2: Speler 5
B3: Naam | C3: =week1!C$3 -> A | D3: =week1!D$3 -> B | E3: =week1!E$3 -> C | F3: =week1!F$3 -> D | G3: =week1!G$3 -> E
B4: Ronde 1
B5: Ronde 2
B6: Ronde 3
B7: Ronde 4
B8: Ronde 5
B9: Totaal | C9: =SUM(C4:C8) -> 0 | D9: =SUM(D4:D8) -> 0 | E9: 0 | F9: 0 | G9: 0
B11: Week 9 | C11: Speler 6 | D11: Speler 7 | E11: Speler 8 | F11: Speler9 | G11: Speler 10
B12: Naam | C12: =week1!C$12 -> F | D12: =week1!D$12 -> G | E12: =week1!E$12 -> H | F12: =week1!F$12 -> I | G12: =week1!G$12 -> J
B13: Ronde 1
B14: Ronde 2
B15: Ronde 3
B16: Ronde 4
B17: Ronde 5
B18: Totaal | C18: =SUM(C13:C17) -> 0 | D18: =SUM(D13:D17) -> 0 | E18: =SUM(E13:E17) -> 0 | F18: =SUM(F13:F17) -> 0 | G18: =SUM(G13:G17) -> 0
B20: Week 9 | C20: Speler 11 | D20: Speler 12 | E20: Speler13 | F20: Speler 14 | G20: Speler 15
B21: Naam | C21: =week1!C$23 -> K | D21: =week1!D$23 -> L | E21: =week1!E$23 -> 0 | F21: =week1!F23 -> 0
B22: Ronde 1
B23: Ronde 2
B24: Ronde 3
B25: Ronde 4
B26: Ronde 5
B27: Sub Tot | C27: =SUM(C22:C26) -> 0 | D27: =SUM(D22:D26) -> 0 | E27: =SUM(E22:E26) -> 0 | F27: =SUM(F22:F26) -> 0 | G27: =SUM(G22:G26) -> 0

Sheet week10
B1: =speelschema!A11:B11 -> 2020-02-21
B2: Week 10 | C2: Speler 1 | D2: Speler 2 | E2: Speler 3 | F2: Speler 4 | G2: Speler 5
B3: Naam | C3: =week1!C$3 -> A | D3: =week1!D$3 -> B | E3: =week1!E$3 -> C | F3: =week1!F$3 -> D | G3: =week1!G$3 -> E
B4: Ronde 1
B5: Ronde 2
B6: Ronde 3
B7: Ronde 4
B8: Ronde 5
B9: Totaal | C9: =SUM(C4:C8) -> 0 | D9: =SUM(D4:D8) -> 0 | E9: 0 | F9: 0 | G9: 0
B11: Week 10 | C11: Speler 6 | D11: Speler 7 | E11: Speler 8 | F11: Speler9 | G11: Speler 10
B12: Naam | C12: =week1!C$12 -> F | D12: =week1!D$12 -> G | E12: =week1!E$12 -> H | F12: =week1!F$12 -> I | G12: =week1!G$12 -> J
B13: Ronde 1
B14: Ronde 2
B15: Ronde 3
B16: Ronde 4
B17: Ronde 5
B18: Totaal | C18: =SUM(C13:C17) -> 0 | D18: =SUM(D13:D17) -> 0 | E18: =SUM(E13:E17) -> 0 | F18: =SUM(F13:F17) -> 0 | G18: =SUM(G13:G17) -> 0
B20: Week 10 | C20: Speler 11 | D20: Speler 12 | E20: Speler13 | F20: Speler 14 | G20: Speler 15
B21: Naam | C21: =week1!C$23 -> K | D21: =week1!D$23 -> L | E21: =week1!E$23 -> 0 | F21: =week1!F23 -> 0
B22: Ronde 1
B23: Ronde 2
B24: Ronde 3
B25: Ronde 4
B26: Ronde 5
B27: Sub Tot | C27: =SUM(C22:C26) -> 0 | D27: =SUM(D22:D26) -> 0 | E27: =SUM(E22:E26) -> 0 | F27: =SUM(F22:F26) -> 0 | G27: =SUM(G22:G26) -> 0

Sheet week11
B1: =speelschema!A12:B12 -> 2020-02-28
B2: Week 11 | C2: Speler 1 | D2: Speler 2 | E2: Speler 3 | F2: Speler 4 | G2: Speler 5
B3: Naam | C3: =week1!C$3 -> A | D3: =week1!D$3 -> B | E3: =week1!E$3 -> C | F3: =week1!F$3 -> D | G3: =week1!G$3 -> E
B4: Ronde 1
B5: Ronde 2
B6: Ronde 3
B7: Ronde 4
B8: Ronde 5
B9: Totaal | C9: =SUM(C4:C8) -> 0 | D9: =SUM(D4:D8) -> 0 | E9: 0 | F9: 0 | G9: 0
B11: Week 11 | C11: Speler 6 | D11: Speler 7 | E11: Speler 8 | F11: Speler9 | G11: Speler 10
B12: Naam | C12: =week1!C$12 -> F | D12: =week1!D$12 -> G | E12: =week1!E$12 -> H | F12: =week1!F$12 -> I | G12: =week1!G$12 -> J
B13: Ronde 1 | G13: 0
B14: Ronde 2 | C14: 0
B15: Ronde 3
B16: Ronde 4
B17: Ronde 5
B18: Totaal | C18: =SUM(C13:C17) -> 0 | D18: =SUM(D13:D17) -> 0 | E18: =SUM(E13:E17) -> 0 | F18: =SUM(F13:F17) -> 0 | G18: =SUM(G13:G17) -> 0
B20: Week 11 | C20: Speler 11 | D20: Speler 12 | E20: Speler13 | F20: Speler 14 | G20: Speler 15
B21: Naam | C21: =week1!C$23 -> K | D21: =week1!D$23 -> L | E21: =week1!E$23 -> 0 | F21: =week1!F23 -> 0
B22: Ronde 1
B23: Ronde 2
B24: Ronde 3
B25: Ronde 4
B26: Ronde 5
B27: Sub Tot | C27: =SUM(C22:C26) -> 0 | D27: =SUM(D22:D26) -> 0 | E27: =SUM(E22:E26) -> 0 | F27: =SUM(F22:F26) -> 0 | G27: =SUM(G22:G26) -> 0

Sheet week12
B1: =speelschema!A13:B13 -> 2020-03-06
B2: Week 12 | C2: Speler 1 | D2: Speler 2 | E2: Speler 3 | F2: Speler 4 | G2: Speler 5
B3: Naam | C3: =week1!C$3 -> A | D3: =week1!D$3 -> B | E3: =week1!E$3 -> C | F3: =week1!F$3 -> D | G3: =week1!G$3 -> E
B4: Ronde 1
B5: Ronde 2
B6: Ronde 3
B7: Ronde 4
B8: Ronde 5
B9: Totaal | C9: =SUM(C4:C8) -> 0 | D9: =SUM(D4:D8) -> 0 | E9: 0 | F9: 0 | G9: 0
B11: Week 12 | C11: Speler 6 | D11: Speler 7 | E11: Speler 8 | F11: Speler9 | G11: Speler 10
B12: Naam | C12: =week1!C$12 -> F | D12: =week1!D$12 -> G | E12: =week1!E$12 -> H | F12: =week1!F$12 -> I | G12: =week1!G$12 -> J
B13: Ronde 1
B14: Ronde 2
B15: Ronde 3
B16: Ronde 4
B17: Ronde 5
B18: Totaal | C18: =SUM(C13:C17) -> 0 | D18: =SUM(D13:D17) -> 0 | E18: =SUM(E13:E17) -> 0 | F18: =SUM(F13:F17) -> 0 | G18: =SUM(G13:G17) -> 0
B20: Week 12 | C20: Speler 11 | D20: Speler 12 | E20: Speler13 | F20: Speler 14 | G20: Speler 15
B21: Naam | C21: =week1!C$23 -> K | D21: =week1!D$23 -> L | E21: =week1!E$23 -> 0 | F21: =week1!F23 -> 0
B22: Ronde 1
B23: Ronde 2
B24: Ronde 3
B25: Ronde 4
B26: Ronde 5
B27: Sub Tot | C27: =SUM(C22:C26) -> 0 | D27: =SUM(D22:D26) -> 0 | E27: =SUM(E22:E26) -> 0 | F27: =SUM(F22:F26) -> 0 | G27: =SUM(G22:G26) -> 0

Sheet week13
B1: =speelschema!A14:B14 -> 2020-03-13
B2: Week 13 | C2: Speler 1 | D2: Speler 2 | E2: Speler 3 | F2: Speler 4 | G2: Speler 5
B3: Naam | C3: =week1!C$3 -> A | D3: =week1!D$3 -> B | E3: =week1!E$3 -> C | F3: =week1!F$3 -> D | G3: =week1!G$3 -> E
B4: Ronde 1
B5: Ronde 2
B6: Ronde 3
B7: Ronde 4
B8: Ronde 5
B9: Totaal | C9: =SUM(C4:C8) -> 0 | D9: =SUM(D4:D8) -> 0 | E9: 0 | F9: 0 | G9: 0
B11: Week 13 | C11: Speler 6 | D11: Speler 7 | E11: Speler 8 | F11: Speler9 | G11: Speler 10
B12: Naam | C12: =week1!C$12 -> F | D12: =week1!D$12 -> G | E12: =week1!E$12 -> H | F12: =week1!F$12 -> I | G12: =week1!G$12 -> J
B13: Ronde 1
B14: Ronde 2
B15: Ronde 3 | G15: 0
B16: Ronde 4
B17: Ronde 5
B18: Totaal | C18: =SUM(C13:C17) -> 0 | D18: =SUM(D13:D17) -> 0 | E18: =SUM(E13:E17) -> 0 | F18: =SUM(F13:F17) -> 0 | G18: =SUM(G13:G17) -> 0
B20: Week 13 | C20: Speler 11 | D20: Speler 12 | E20: Speler13 | F20: Speler 14 | G20: Speler 15
B21: Naam | C21: =week1!C$23 -> K | D21: =week1!D$23 -> L | E21: =week1!E$23 -> 0 | F21: =week1!F23 -> 0
B22: Ronde 1
B23: Ronde 2
B24: Ronde 3
B25: Ronde 4
B26: Ronde 5
B27: Sub Tot | C27: =SUM(C22:C26) -> 0 | D27: =SUM(D22:D26) -> 0 | E27: =SUM(E22:E26) -> 0 | F27: =SUM(F22:F26) -> 0 | G27: =SUM(G22:G26) -> 0

Sheet week14
B1: =speelschema!A15:B15 -> 2020-03-20
B2: Week 14 | C2: Speler 1 | D2: Speler 2 | E2: Speler 3 | F2: Speler 4 | G2: Speler 5
B3: Naam | C3: =week1!C$3 -> A | D3: =week1!D$3 -> B | E3: =week1!E$3 -> C | F3: =week1!F$3 -> D | G3: =week1!G$3 -> E
B4: Ronde 1
B5: Ronde 2
B6: Ronde 3
B7: Ronde 4
B8: Ronde 5
B9: Totaal | C9: =SUM(C4:C8) -> 0 | D9: =SUM(D4:D8) -> 0 | E9: 0 | F9: 0 | G9: 0
B11: Week 14 | C11: Speler 6 | D11: Speler 7 | E11: Speler 8 | F11: Speler9 | G11: Speler 10
B12: Naam | C12: =week1!C$12 -> F | D12: =week1!D$12 -> G | E12: =week1!E$12 -> H | F12: =week1!F$12 -> I | G12: =week1!G$12 -> J
B13: Ronde 1
B14: Ronde 2
B15: Ronde 3
B16: Ronde 4
B17: Ronde 5
B18: Totaal | C18: =SUM(C13:C17) -> 0 | D18: =SUM(D13:D17) -> 0 | E18: =SUM(E13:E17) -> 0 | F18: =SUM(F13:F17) -> 0 | G18: =SUM(G13:G17) -> 0
B20: Week 14 | C20: Speler 11 | D20: Speler 12 | E20: Speler13 | F20: Speler 14 | G20: Speler 15
B21: Naam | C21: =week1!C$23 -> K | D21: =week1!D$23 -> L | E21: =week1!E$23 -> 0
B22: Ronde 1
B23: Ronde 2
B24: Ronde 3
B25: Ronde 4
B26: Ronde 5
B27: Sub Tot | C27: =SUM(C22:C26) -> 0 | D27: =SUM(D22:D26) -> 0 | E27: =SUM(E22:E26) -> 0 | F27: =SUM(F22:F26) -> 0 | G27: =SUM(G22:G26) -> 0

Sheet week15
B1: =speelschema!A16:B16 -> 2020-03-27
B2: Week 15 | C2: Speler 1 | D2: Speler 2 | E2: Speler 3 | F2: Speler 4 | G2: Speler 5
B3: Naam | C3: =week1!C$3 -> A | D3: =week1!D$3 -> B | E3: =week1!E$3 -> C | F3: =week1!F$3 -> D | G3: =week1!G$3 -> E
B4: Ronde 1
B5: Ronde 2
B6: Ronde 3
B7: Ronde 4
B8: Ronde 5
B9: Totaal | C9: =SUM(C4:C8) -> 0 | D9: =SUM(D4:D8) -> 0 | E9: 0 | F9: 0 | G9: 0
B11: Week 15 | C11: Speler 6 | D11: Speler 7 | E11: Speler 8 | F11: Speler9 | G11: Speler 10
B12: Naam | C12: =week1!C$12 -> F | D12: =week1!D$12 -> G | E12: =week1!E$12 -> H | F12: =week1!F$12 -> I | G12: =week1!G$12 -> J
B13: Ronde 1
B14: Ronde 2
B15: Ronde 3
B16: Ronde 4
B17: Ronde 5
B18: Totaal | C18: =SUM(C13:C17) -> 0 | D18: =SUM(D13:D17) -> 0 | E18: =SUM(E13:E17) -> 0 | F18: =SUM(F13:F17) -> 0 | G18: =SUM(G13:G17) -> 0
B20: Week 15 | C20: Speler 11 | D20: Speler 12 | E20: Speler13 | F20: Speler 14 | G20: Speler 15
B21: Naam | C21: =week1!C$23 -> K | D21: =week1!D$23 -> L | E21: =week1!E$23 -> 0
B22: Ronde 1
B23: Ronde 2
B24: Ronde 3
B25: Ronde 4
B26: Ronde 5
B27: Sub Tot | C27: =SUM(C22:C26) -> 0 | D27: =SUM(D22:D26) -> 0 | E27: =SUM(E22:E26) -> 0 | F27: =SUM(F22:F26) -> 0 | G27: =SUM(G22:G26) -> 0

Sheet cum uitslag
B1: Speeldatum | C1: =week1!B1 -> 2019-11-15 | D1: =week2!B1 -> 2019-11-22 | E1: =week3!B1 -> 2019-11-29 | F1: =week4!B1 -> 2019-12-13 | G1: =week5!B1 -> 2020-01-10 | H1: =week6!B1 -> 2020-01-17 | I1: =week7!B1 -> 2020-01-24 | J1: =week8!B1 -> 2020-02-07 | K1: =week9!B1 -> 2020-02-14 | L1: =week10!B1 -> 2020-02-21 | M1: =week11!B1 -> 2020-02-28 | N1: =week12!B1 -> 2020-03-06 | O1: =week13!B1 -> 2020-03-13 | P1: =week14!B1 -> 2020-03-20 | Q1: =week15!B1 -> 2020-03-27
B2: Naam | C2: week 1 | D2: week 2 | E2: week 3 | F2: week 4 | G2: week 5 | H2: week 6 | I2: week 7 | J2: week 8 | K2: week 9 | L2: week 10 | M2: week 11 | N2: week 12 | O2: week 13 | P2: week 14 | Q2: week 15 | R2: Totaal | T2: GEMIDD
B3: =week1!$C$23 -> K | C3: =week1!$C29 -> 364 | D3: =week2!$C27 -> 350 | E3: =week3!$C27 -> 0 | F3: =week4!$C27 -> 0 | G3: =week5!$C27 -> 0 | H3: =week6!$C27 -> 0 | I3: =week7!$C27 -> 0 | J3: =week8!$C27 -> 0 | K3: =week9!$C27 -> 0 | L3: =week10!$C27 -> 0 | M3: =week11!$C27 -> 0 | N3: =week12!$C27 -> 0 | O3: =week13!$C27 -> 0 | P3: =week14!$C27 -> 0 | Q3: =week15!$C27 -> 0 | R3: =SUM(C3:Q3) -> 714 | T3: =AVERAGEIF(C3:Q3,"<>0") -> 357
B4: =week1!$F$12 -> I | C4: =week1!$F18 -> 343 | D4: =week2!$F18 -> 363 | E4: =week3!$F18 -> 0 | F4: =week4!$F18 -> 0 | G4: =week5!$F18 -> 0 | H4: =week6!$F18 -> 0 | I4: =week7!$F18 -> 0 | J4: =week8!$F18 -> 0 | K4: =week9!$F18 -> 0 | L4: =week10!$F18 -> 0 | M4: =week11!$F18 -> 0 | N4: =week12!$F18 -> 0 | O4: =week13!$F18 -> 0 | P4: =week14!$F18 -> 0 | Q4: =week15!$F18 -> 0 | R4: =SUM(C4:Q4) -> 706 | T4: 353
B5: =week1!$C$3 -> A | C5: =week1!$C9 -> 334 | D5: =week2!$C9 -> 371 | E5: =week3!$C9 -> 0 | F5: =week4!$C9 -> 0 | G5: =week5!$C9 -> 0 | H5: =week6!$C9 -> 0 | I5: =week7!$C9 -> 0 | J5: =week8!$C9 -> 0 | K5: =week9!$C9 -> 0 | L5: =week10!$C9 -> 0 | M5: =week11!$C9 -> 0 | N5: =week12!$C9 -> 0 | O5: =week13!$C9 -> 0 | P5: =week14!$C9 -> 0 | Q5: =week15!$C9 -> 0 | R5: =SUM(C5:Q5) -> 705 | T5: 352.5
B6: =week1!$D$12 -> G | C6: =week1!$D18 -> 332 | D6: =week2!$D18 -> 349 | E6: =week3!$D18 -> 0 | F6: =week4!$D18 -> 0 | G6: =week5!$D18 -> 0 | H6: =week6!$D18 -> 0 | I6: =week7!$D18 -> 0 | J6: =week8!$D18 -> 0 | K6: =week9!$D18 -> 0 | L6: =week10!$D18 -> 0 | M6: =week11!$D18 -> 0 | N6: =week12!$D18 -> 0 | O6: =week13!$D18 -> 0 | P6: =week14!$D18 -> 0 | Q6: =week15!$D18 -> 0 | R6: =SUM(C6:Q6) -> 681 | T6: 340.5
B7: =week1!$E$12 -> H | C7: =week1!$E18 -> 327 | D7: =week2!$E18 -> 349 | E7: =week3!$E18 -> 0 | F7: =week4!$E18 -> 0 | G7: =week5!$E18 -> 0 | H7: =week6!$E18 -> 0 | I7: =week7!$E18 -> 0 | J7: =week8!$E18 -> 0 | K7: =week9!$E18 -> 0 | L7: =week10!$E18 -> 0 | M7: =week11!$E18 -> 0 | N7: =week12!$E18 -> 0 | O7: =week13!$E18 -> 0 | P7: =week14!$E18 -> 0 | Q7: =week15!$E18 -> 0 | R7: =SUM(C7:Q7) -> 676 | T7: 338
B8: =week1!$D$3 -> B | C8: =week1!$D9 -> 326 | D8: =week2!$D9 -> 347 | E8: =week3!$D9 -> 0 | F8: =week4!$D9 -> 0 | G8: =week5!$D9 -> 0 | H8: =week6!$D9 -> 0 | I8: =week7!$D9 -> 0 | J8: =week8!$D9 -> 0 | K8: =week9!$D9 -> 0 | L8: =week10!$D9 -> 0 | M8: =week11!$D9 -> 0 | N8: =week12!$D9 -> 0 | O8: =week13!$D9 -> 0 | P8: =week14!$D9 -> 0 | Q8: =week15!$D9 -> 0 | R8: =SUM(C8:Q8) -> 673 | T8: 336.5
B9: =week1!$D$23 -> L | C9: =week1!$D29 -> 297 | D9: =week2!$D27 -> 372 | E9: =week3!$D27 -> 0 | F9: =week4!$D27 -> 0 | G9: =week5!$D27 -> 0 | H9: =week6!$D27 -> 0 | I9: =week7!$D27 -> 0 | J9: =week8!$D27 -> 0 | K9: =week9!$D27 -> 0 | L9: =week10!$D27 -> 0 | M9: =week11!$D27 -> 0 | N9: =week12!$D27 -> 0 | O9: =week13!$D27 -> 0 | P9: =week14!$D27 -> 0 | Q9: =week15!$D27 -> 0 | R9: =SUM(C9:Q9) -> 669 | T9: 334.5
B10: =week1!$G$12 -> J | C10: =week1!$G18 -> 366 | D10: =week2!$G18 -> 299 | E10: =week3!$G18 -> 0 | F10: =week4!$G18 -> 0 | G10: =week5!$G18 -> 0 | H10: =week6!$G18 -> 0 | I10: =week7!$G18 -> 0 | J10: =week8!$G18 -> 0 | K10: =week9!$G18 -> 0 | L10: =week10!$G18 -> 0 | M10: =week11!$G18 -> 0 | N10: =week12!$G18 -> 0 | O10: =week13!$G18 -> 0 | P10: =week14!$G18 -> 0 | Q10: =week15!$G18 -> 0 | R10: =SUM(C10:Q10) -> 665 | T10: 332.5
B11: =week1!$C$12 -> F | C11: =week1!$C18 -> 300 | D11: =week2!$C18 -> 289 | E11: =week3!$C18 -> 0 | F11: =week4!$C18 -> 0 | G11: =week5!$C18 -> 0 | H11: =week6!$C18 -> 0 | I11: =week7!$C18 -> 0 | J11: =week8!$C18 -> 0 | K11: =week9!$C18 -> 0 | L11: =week10!$C18 -> 0 | M11: =week11!$C18 -> 0 | N11: =week12!$C18 -> 0 | O11: =week13!$C18 -> 0 | P11: =week14!$C18 -> 0 | Q11: =week15!$C18 -> 0 | R11: =SUM(C11:Q11) -> 589 | T11: 294.5
B12: =week1!$E$3 -> C | C12: =week1!$E9 -> 293 | D12: =week2!$E9 -> 292 | E12: =week3!$E9 -> 0 | F12: =week4!$E9 -> 0 | G12: =week5!$E9 -> 0 | H12: =week6!$E9 -> 0 | I12: =week7!$E9 -> 0 | J12: =week8!$E9 -> 0 | K12: =week9!$E9 -> 0 | L12: =week10!$E9 -> 0 | M12: =week11!$E9 -> 0 | N12: =week12!$E9 -> 0 | O12: =week13!$E9 -> 0 | P12: =week14!$E9 -> 0 | Q12: =week15!$E9 -> 0 | R12: =SUM(C12:Q12) -> 585 | T12: 292.5
B13: =week1!$F$3 -> D | C13: =week1!$F9 -> 296 | D13: =week2!$F9 -> 287 | E13: =week3!$F9 -> 0 | F13: =week4!$F9 -> 0 | G13: =week5!$F9 -> 0 | H13: =week6!$F9 -> 0 | I13: =week7!$F9 -> 0 | J13: =week8!$F9 -> 0 | K13: =week9!$F9 -> 0 | L13: =week10!$F9 -> 0 | M13: =week11!$F9 -> 0 | N13: =week12!$F9 -> 0 | O13: =week13!$F9 -> 0 | P13: =week14!$F9 -> 0 | Q13: =week15!$F9 -> 0 | R13: =SUM(C13:Q13) -> 583 | T13: 291.5
B14: =week1!$G$3 -> E | C14: =week1!$G9 -> 266 | D14: =week2!$G9 -> 316 | E14: =week3!$G9 -> 0 | F14: =week4!$G9 -> 0 | G14: =week5!$G9 -> 0 | H14: =week6!$G9 -> 0 | I14: =week7!$G9 -> 0 | J14: =week8!$G9 -> 0 | K14: =week9!$G9 -> 0 | L14: =week10!$G9 -> 0 | M14: =week11!$G9 -> 0 | N14: =week12!$G9 -> 0 | O14: =week13!$G9 -> 0 | P14: =week14!$G9 -> 0 | Q14: =week15!$G9 -> 0 | R14: =SUM(C14:Q14) -> 582 | T14: 291

Sheet speelschema
A1: SPEELSCHEMA | B1: DATA
A2: week 1 | B2: =week1!$B$1 -> 2019-11-15
A3: week 2 | B3: 2019-11-22
A4: week 3 | B4: 2019-11-29
A5: week 4 | B5: 2019-12-13
A6: week 5 | B6: 2020-01-10
A7: week 6 | B7: 2020-01-17
A8: week 7 | B8: 2020-01-24
A9: week 8 | B9: 2020-02-07
A10: week 9 | B10: 2020-02-14
A11: week 10 | B11: 2020-02-21
A12: week 11 | B12: 2020-02-28
A13: week 12 | B13: 2020-03-06
A14: week 13 | B14: 2020-03-13
A15: week 14 | B15: 2020-03-20
A16: week 15 | B16: 2020-03-27
